fUST/lending_fUST_20250723
["ID","MTS","AMOUNT","RATE_DAILY","PERIOD"]
[374294158,1753267649197,-460.0,0.00019178,2]
[374294159,1753267649218,-579.0,0.00019178,2]
[374294160,1753267649244,-460.0,0.00019178,2]
[374294161,1753267649266,-460.0,0.00019178,2]
[374294162,1753267649288,-462.32096043,0.00019178,2]
[374294163,1753267649310,-460.0,0.00019178,2]
[374294164,1753267649332,-460.0,0.00019178,2]
[374294165,1753267649354,-460.0,0.00019178,2]
[374294166,1753267649382,-500.0,0.00019178,2]
[374294167,1753267649406,-460.0,0.00019178,2]
[374294168,1753267649428,-500.0,0.00019178,2]
[374294169,1753267649450,-460.0,0.00019178,2]
[374294170,1753267649472,-151.0,0.00019178,2]
[374294171,1753267649495,-460.0,0.00019178,2]
[374294172,1753267649518,-627.68,0.00019178,2]
[374294173,1753267649541,-461.40628022,0.00019178,2]
[374294174,1753267649562,-151.0,0.00019178,2]
[374294175,1753267649584,-460.0,0.00019178,2]
[374294176,1753267649607,-460.0,0.00019178,2]
[374294177,1753267649629,-460.0,0.00019178,2]
[374294178,1753267649652,-460.0,0.00019178,2]
[374294179,1753267649675,-460.0,0.00019178,2]
[374294180,1753267649696,-460.0,0.00019178,2]
[374294181,1753267649718,-460.0,0.00019178,2]
[374294182,1753267649742,-460.0,0.00019178,2]
[374294183,1753267649764,-460.0,0.00019178,2]
[374294184,1753267649786,-460.0,0.00019178,2]
[374294185,1753267649809,-460.0,0.00019178,2]
[374294186,1753267649831,-460.0,0.00019178,2]
[374294187,1753267649854,-460.0,0.00019178,2]
[374294188,1753267649884,-460.5816912,0.00019178,2]
[374294189,1753267649910,-460.0,0.00019178,2]
[374294190,1753267649932,-460.0,0.00019178,2]
[374294191,1753267649956,-2517.6,0.00019178,2]
[374294192,1753267649978,-796.71,0.00019178,2]
[374294193,1753267650000,-460.0,0.00019178,2]
[374294194,1753267650024,-460.0,0.00019178,2]
[374294195,1753267650049,-460.0,0.00019178,2]
[374294196,1753267650071,-443.22857386,0.00019178,2]
[374294197,1753267650096,-460.0,0.00019178,2]
[374294198,1753267650119,-460.0,0.00019178,2]
[374294199,1753267650140,-460.0,0.00019178,2]
[374294200,1753267650163,-460.0,0.00019178,2]
[374294201,1753267650185,-460.0,0.00019178,2]
[374294202,1753267650220,-460.0,0.00019178,2]
[374294203,1753267650245,-544.4,0.00019178,2]
[374294204,1753267650269,-460.0,0.00019178,2]
[374294205,1753267650296,-460.0,0.00019178,2]
[374294206,1753267650320,-460.0,0.00019178,2]
[374294207,1753267650343,-460.0,0.00019178,2]
[374294208,1753267650365,-460.0,0.00019178,2]
[374294209,1753267650390,-460.0,0.00019178,2]
[374294210,1753267650414,-460.0,0.00019178,2]
[374294211,1753267650437,-460.0,0.00019178,2]
[374294212,1753267650461,-460.0,0.00019178,2]
[374294213,1753267650493,-460.0,0.00019178,2]
[374294214,1753267650520,-460.0,0.00019178,2]
[374294215,1753267650544,-3649.48,0.00019178,2]
[374294216,1753267650567,-460.0,0.00019178,2]
[374294217,1753267650590,-460.0,0.00019178,2]
[374294218,1753267650612,-460.0,0.00019178,2]
[374294219,1753267650635,-469.64,0.00019178,2]
[374294220,1753267650658,-460.0,0.00019178,2]
[374294221,1753267650684,-460.0,0.00019178,2]
[374294222,1753267650706,-460.0,0.00019178,2]
[374294223,1753267650728,-460.0,0.00019178,2]
[374294224,1753267650752,-460.0,0.00019178,2]
[374294225,1753267650775,-460.0,0.00019178,2]
[374294226,1753267650799,-460.0,0.00019178,2]
[374294227,1753267650822,-460.0,0.00019178,2]
[374294228,1753267650846,-460.0,0.00019178,2]
[374294229,1753267650876,-460.0,0.00019178,2]
[374294230,1753267650900,-460.0,0.00019178,2]
[374294231,1753267650933,-3115.47,0.00019178,2]
[374294232,1753267650958,-460.0,0.00019178,2]
[374294233,1753267650982,-460.0,0.00019178,2]
[374294234,1753267651006,-460.0,0.00019178,2]
[374294235,1753267651031,-460.0,0.00019178,2]
[374294236,1753267651054,-460.0,0.00019178,2]
[374294237,1753267651077,-676.81,0.00019178,2]
[374294238,1753267651100,-163.82589383,0.00019178,2]
[374294239,1753267651122,-543.79,0.00019178,2]
[374294240,1753267651145,-460.0,0.00019178,2]
[374294241,1753267651168,-460.0,0.00019178,2]
[374294242,1753267651191,-460.0,0.00019178,2]
[374294243,1753267651224,-460.0,0.00019178,2]
[374294244,1753267651275,-460.0,0.00019178,2]
[374294245,1753267651328,-460.0,0.00019178,2]
[374294246,1753267651379,-1114.94,0.00019178,2]
[374294247,1753267651431,-460.0,0.00019178,2]
[374294248,1753267651483,-460.0,0.00019178,2]
[374294249,1753267651538,-460.0,0.00019178,2]
[374294250,1753267651585,-460.0,0.00019178,2]
[374294251,1753267651609,-460.0,0.00019178,2]
[374294252,1753267651634,-460.0,0.00019178,2]
[374294253,1753267651800,-460.0,0.00019178,2]
[374294254,1753267651845,-1439.72,0.00019178,2]
[374294255,1753267651867,-460.0,0.00019178,2]
[374294256,1753267651890,-460.0,0.00019178,2]
[374294257,1753267651911,-460.0,0.00019178,2]
[374294258,1753267651933,-460.0,0.00019178,2]
[374294259,1753267651955,-460.0,0.00019178,2]
[374294260,1753267651979,-460.0,0.00019178,2]
[374294261,1753267652000,-460.0,0.00019178,2]
[374294262,1753267652026,-151.0,0.00019178,2]
[374294263,1753267652048,-154.22183122,0.00019178,2]
[374294264,1753267652071,-460.0,0.00019178,2]
[374294265,1753267652093,-500.0,0.00019178,2]
[374294266,1753267652115,-460.0,0.00019178,2]
[374294267,1753267652137,-460.0,0.00019178,2]
[374294268,1753267652158,-460.0,0.00019178,2]
[374294269,1753267652180,-523.90435284,0.00019178,2]
[374294270,1753267652202,-460.0,0.00019178,2]
[374294271,1753267652224,-460.0,0.00019178,2]
[374294272,1753267652246,-460.0,0.00019178,2]
[374294273,1753267652267,-460.26459738,0.00019178,2]
[374294274,1753267652289,-460.0,0.00019178,2]
[374294275,1753267652311,-680.31,0.00019178,2]
[374294276,1753267652333,-460.0,0.00019178,2]
[374294277,1753267652355,-460.0,0.00019178,2]
[374294278,1753267652379,-460.0,0.00019178,2]
[374294279,1753267652410,-460.0,0.00019178,2]
[374294280,1753267652458,-460.0,0.00019178,2]
[374294281,1753267652512,-461.43106152,0.00019178,2]
[374294282,1753267652669,-460.0,0.00019178,2]
[374294283,1753267652740,-460.0,0.00019178,2]
[374294284,1753267652766,-479.42,0.00019178,2]
[374294285,1753267652790,-460.0,0.00019178,2]
[374294286,1753267652814,-460.0,0.00019178,2]
[374294287,1753267652836,-460.0,0.00019178,2]
[374294288,1753267652858,-547.59,0.00019178,2]
[374294289,1753267652880,-460.0,0.00019178,2]
[374294290,1753267652902,-460.0,0.00019178,2]
[374294291,1753267652924,-460.0,0.00019178,2]
[374294292,1753267652945,-460.90514726,0.00019178,2]
[374294293,1753267652966,-559.93,0.00019178,2]
[374294294,1753267652988,-460.0,0.00019178,2]
[374294295,1753267653013,-460.0,0.00019178,2]
[374294296,1753267653034,-446.96722153,0.00019178,2]
[374294297,1753267653061,-218.94040013,0.00019178,2]
[374294298,1753267653084,-460.0,0.00019178,2]
[374294299,1753267653109,-813.54,0.00019178,2]
[374294300,1753267653132,-460.0,0.00019178,2]
[374294301,1753267653156,-151.0,0.00019178,2]
[374294302,1753267653178,-460.0,0.00019178,2]
[374294303,1753267653202,-462.91700929,0.00019178,2]
[374294304,1753267653228,-8358.88,0.00019178,2]
[374294305,1753267653251,-948.0,0.00019178,2]
[374294306,1753267653277,-460.0,0.00019178,2]
[374294307,1753267653303,-460.0,0.00019178,2]
[374294308,1753267653329,-2369.9,0.00019178,2]
[374294309,1753267653353,-460.0,0.00019178,2]
[374294310,1753267653376,-460.0,0.00019178,2]
[374294311,1753267653399,-460.0,0.00019178,2]
[374294312,1753267653422,-460.0,0.00019178,2]
[374294313,1753267653445,-151.0,0.00019178,2]
[374294314,1753267653468,-460.0,0.00019178,2]
[374294315,1753267653491,-460.0,0.00019178,2]
[374294316,1753267653515,-460.0,0.00019178,2]
[374294317,1753267653539,-151.0,0.00019178,2]
[374294318,1753267653563,-460.0,0.00019178,2]
[374294319,1753267653586,-460.0,0.00019178,2]
[374294320,1753267653610,-460.0,0.00019178,2]
[374294321,1753267653633,-151.0,0.00019178,2]
[374294322,1753267653657,-460.0,0.00019178,2]
[374294323,1753267653680,-555.22831236,0.00019178,2]
[374294324,1753267653703,-2224.3,0.00019178,2]
[374294325,1753267653726,-460.0,0.00019178,2]
[374294326,1753267653750,-905.37,0.00019178,2]
[374294327,1753267653773,-460.0,0.00019178,2]
[374294328,1753267653799,-460.0,0.00019178,2]
[374294329,1753267653823,-460.0,0.00019178,2]
[374294330,1753267653845,-460.0,0.00019178,2]
[374294331,1753267653868,-460.0,0.00019178,2]
[374294332,1753267653891,-460.0,0.00019178,2]
[374294333,1753267653913,-460.0,0.00019178,2]
[374294334,1753267653935,-500.18,0.00019178,2]
[374294335,1753267653958,-460.0,0.00019178,2]
[374294336,1753267653981,-460.0,0.00019178,2]
[374294337,1753267654003,-460.0,0.00019178,2]
[374294338,1753267654031,-470.71743591,0.00019178,2]
[374294339,1753267654055,-460.0,0.00019178,2]
[374294340,1753267654077,-460.0,0.00019178,2]
[374294341,1753267654102,-460.0,0.00019178,2]
[374294342,1753267654125,-460.0,0.00019178,2]
[374294343,1753267654148,-460.0,0.00019178,2]
[374294344,1753267654170,-460.0,0.00019178,2]
[374294345,1753267654194,-580.76554171,0.00019178,2]
[374294346,1753267654217,-460.0,0.00019178,2]
[374294347,1753267654240,-460.0,0.00019178,2]
[374294348,1753267654264,-460.0,0.00019178,2]
[374294349,1753267654288,-460.78397363,0.00019178,2]
[374294350,1753267654312,-460.0,0.00019178,2]
[374294351,1753267654337,-460.0,0.00019178,2]
[374294352,1753267654361,-460.0,0.00019178,2]
[374294353,1753267654384,-460.0,0.00019178,2]
[374294354,1753267654406,-666.0,0.00019178,2]
[374294355,1753267654430,-279.801162,0.00019178,2]
[374294356,1753267654452,-5000.0,0.00019178,2]
[374294357,1753267654475,-1271.84472331,0.00019178,2]
[374294358,1753267654498,-271.0,0.00019191,2]
[374294359,1753267654521,-151.0,0.000192,2]
[374294360,1753267654544,-151.0,0.000193,2]
[374294361,1753267654566,-151.0,0.000193,2]
[374294362,1753267654588,-55093.60656126,0.00019329,2]
[374294363,1753267655399,-460.0,0.00019178,2]
[374294364,1753267655419,-461.28047505,0.00019178,2]
[374294365,1753267655439,-460.0,0.00019178,2]
[374294366,1753267655461,-4743.57,0.00019178,2]
[374294367,1753267655481,-460.74247809,0.00019178,2]
[374294368,1753267655502,-460.0,0.00019178,2]
[374294369,1753267655523,-500.0,0.00019178,2]
[374294370,1753267655543,-500.0,0.00019351,2]
[374294371,1753267655564,-151.0,0.000194,2]
[374294372,1753267655585,-151.0,0.000194,2]
[374294373,1753267655606,-151.0,0.000194,2]
[374294374,1753267655626,-1635.41532556,0.00019422,2]
[374294375,1753267655647,-200.0,0.00019432,2]
[374294376,1753267655667,-151.0,0.00019452,2]
[374294377,1753267655687,-500.0,0.00019452,2]
[374294378,1753267655707,-151.0,0.00019452,2]
[374294379,1753267655727,-151.0,0.00019452,2]
[374294380,1753267655747,-151.0,0.00019452,2]
[374294381,1753267655767,-151.0,0.00019452,2]
[374294382,1753267655788,-579.0,0.00019452,2]
[374294383,1753267655808,-500.0,0.00019452,2]
[374294384,1753267655828,-169.13385473,0.00019452,2]
[374294385,1753267655849,-296.32336965,0.00019452,2]
[374294386,1753267655868,-500.0,0.00019452,2]
[374294387,1753267655888,-204.47157451,0.00019452,2]
[374294388,1753267655910,-948.0,0.00019452,2]
[374294389,1753267655931,-151.0,0.00019452,2]
[374294390,1753267655951,-151.0,0.00019452,2]
[374294391,1753267655971,-460.0,0.00019452,2]
[374294392,1753267655990,-460.0,0.00019452,2]
[374294393,1753267656010,-460.0,0.00019452,2]
[374294394,1753267656034,-460.0,0.00019452,2]
[374294395,1753267656055,-460.0,0.00019452,2]
[374294396,1753267656075,-460.0,0.00019452,2]
[374294397,1753267656096,-569.61269116,0.00019452,2]
[374294398,1753267656116,-460.0,0.00019452,2]
[374294399,1753267656136,-460.0,0.00019452,2]
[374294400,1753267656157,-460.0,0.00019452,2]
[374294401,1753267656177,-460.0,0.00019452,2]
[374294402,1753267656197,-460.0,0.00019452,2]
[374294403,1753267656218,-256.64130121,0.00019452,2]
[374294404,1753267656238,-460.0,0.00019452,2]
[374294405,1753267656258,-460.0,0.00019452,2]
[374294406,1753267656279,-3038.32,0.00019452,2]
[374294407,1753267656301,-240.40580293,0.00019452,2]
[374294408,1753267656321,-460.0,0.00019452,2]
[374294409,1753267656341,-460.0,0.00019452,2]
[374294410,1753267656361,-460.0,0.00019452,2]
[374294411,1753267656381,-460.0,0.00019452,2]
[374294412,1753267656402,-460.0,0.00019452,2]
[374294413,1753267656423,-460.0,0.00019452,2]
[374294414,1753267656443,-460.0,0.00019452,2]
[374294415,1753267656464,-464.22433652,0.00019452,2]
[374294416,1753267656485,-460.0,0.00019452,2]
[374294417,1753267656505,-460.0,0.00019452,2]
[374294418,1753267656525,-460.0,0.00019452,2]
[374294419,1753267656547,-460.0,0.00019452,2]
[374294420,1753267656568,-1603.63,0.00019452,2]
[374294421,1753267656589,-463.14246143,0.00019452,2]
[374294422,1753267656609,-460.0,0.00019452,2]
[374294423,1753267656629,-460.0,0.00019452,2]
[374294424,1753267656649,-461.48863768,0.00019452,2]
[374294425,1753267656670,-460.0,0.00019452,2]
[374294426,1753267656691,-598.35,0.00019452,2]
[374294427,1753267656711,-460.0,0.00019452,2]
[374294428,1753267656731,-460.0,0.00019452,2]
[374294429,1753267656752,-460.0,0.00019452,2]
[374294430,1753267656772,-229.08536249,0.00019452,2]
[374294435,1753267746206,-293.02,0.00018005,2]
[374294436,1753267746228,-300.0,0.00018396,2]
[374294437,1753267746250,-10000.0,0.00018397,2]
[374294438,1753267746272,-586.04,0.00018862,2]
[374294439,1753267746294,-194123.93015345,0.00018973,2]
[374294440,1753267772105,-217.06,0.00018963,3]
[374294441,1753267772128,-3531.01989891,0.00018973,2]
[374294445,1753267832603,-281.83,0.00018685,2]
[374294446,1753267832613,-179.5925,0.000189,2]
[374294447,1753267832625,-1453.2238378,0.000189,2]
[374294448,1753267832634,-651.2,0.00018963,3]
[374294449,1753267832644,-300.0,0.00018972,2]
[374294450,1753267832654,-172345.04994764,0.00018973,2]
[374294451,1753267832664,-12364.33000242,0.00018978,2]
[374294452,1753267832674,-500.0,0.00019173,2]
[374294453,1753267832683,-500.0,0.00019173,2]
[374294454,1753267832692,-500.0,0.00019173,2]
[374294455,1753267832702,-500.0,0.00019173,2]
[374294456,1753267832712,-212.06625253,0.00019173,2]
[374294457,1753267832724,-473.51702685,0.00019173,2]
[374294459,1753267832733,-500.0,0.00019173,2]
[374294460,1753267832742,-500.0,0.00019173,2]
[374294461,1753267832751,-500.0,0.00019173,2]
[374294462,1753267832761,-500.0,0.00019173,2]
[374294464,1753267832770,-500.0,0.00019173,2]
[374294466,1753267832779,-460.0,0.00019178,2]
[374294468,1753267832789,-460.0,0.00019178,2]
[374294469,1753267832798,-460.0,0.00019178,2]
[374294470,1753267832807,-460.0,0.00019178,2]
[374294472,1753267832817,-657.9,0.00019178,2]
[374294474,1753267832826,-460.0,0.00019178,2]
[374294476,1753267832835,-4227.59,0.00019178,2]
[374294477,1753267832844,-460.0,0.00019178,2]
[374294479,1753267832853,-460.0,0.00019178,2]
[374294481,1753267832863,-460.0,0.00019178,2]
[374294483,1753267832872,-460.0,0.00019178,2]
[374294485,1753267832881,-460.0,0.00019178,2]
[374294487,1753267832890,-460.0,0.00019178,2]
[374294489,1753267832900,-460.0,0.00019178,2]
[374294491,1753267832909,-460.0,0.00019178,2]
[374294493,1753267832919,-460.0,0.00019178,2]
[374294495,1753267832928,-460.0,0.00019178,2]
[374294497,1753267832938,-642.08,0.00019178,2]
[374294499,1753267832947,-460.0,0.00019178,2]
[374294501,1753267832957,-460.0,0.00019178,2]
[374294503,1753267832966,-460.0,0.00019178,2]
[374294505,1753267832975,-460.0,0.00019178,2]
[374294507,1753267832984,-460.0,0.00019178,2]
[374294509,1753267832993,-460.0,0.00019178,2]
[374294511,1753267833002,-460.0,0.00019178,2]
[374294513,1753267833011,-460.0,0.00019178,2]
[374294515,1753267833020,-460.0,0.00019178,2]
[374294517,1753267833030,-460.0,0.00019178,2]
[374294519,1753267833039,-500.0,0.00019178,2]
[374294521,1753267833048,-500.0,0.00019178,2]
[374294523,1753267833059,-463.97000016,0.00019178,2]
[374294524,1753267833070,-460.0,0.00019178,2]
[374294526,1753267833080,-460.0,0.00019178,2]
[374294528,1753267833089,-2856.62,0.00019178,2]
[374294530,1753267833099,-915.33,0.00019178,2]
[374294532,1753267833108,-460.0,0.00019178,2]
[374294534,1753267833118,-1742.24,0.00019178,2]
[374294536,1753267833128,-994.23,0.00019178,2]
[374294538,1753267833138,-460.0,0.00019178,2]
[374294540,1753267833147,-460.0,0.00019178,2]
[374294542,1753267833156,-460.0,0.00019178,2]
[374294544,1753267833166,-460.0,0.00019178,2]
[374294545,1753267833176,-220.56230899,0.00019178,2]
[374294547,1753267833186,-460.0,0.00019178,2]
[374294549,1753267833195,-3009.86,0.00019178,2]
[374294551,1753267833205,-460.0,0.00019178,2]
[374294552,1753267833219,-460.0,0.00019178,2]
[374294554,1753267833228,-460.0,0.00019178,2]
[374294556,1753267833238,-460.0,0.00019178,2]
[374294558,1753267833247,-460.0,0.00019178,2]
[374294560,1753267833257,-460.0,0.00019178,2]
[374294562,1753267833267,-509.4069577,0.00019178,2]
[374294564,1753267833276,-625.88,0.00019178,2]
[374294565,1753267833286,-460.0,0.00019178,2]
[374294567,1753267833296,-460.0,0.00019178,2]
[374294569,1753267833306,-460.0,0.00019178,2]
[374294571,1753267833316,-460.0,0.00019178,2]
[374294572,1753267833326,-460.0,0.00019178,2]
[374294573,1753267833335,-460.0,0.00019178,2]
[374294574,1753267833345,-460.0,0.00019178,2]
[374294575,1753267833354,-600.75,0.00019178,2]
[374294577,1753267833364,-4438.6,0.00019178,2]
[374294578,1753267833374,-460.0,0.00019178,2]
[374294579,1753267833384,-460.0,0.00019178,2]
[374294580,1753267833394,-460.0,0.00019178,2]
[374294581,1753267833404,-460.0,0.00019178,2]
[374294582,1753267833414,-460.0,0.00019178,2]
[374294583,1753267833424,-460.0,0.00019178,2]
[374294584,1753267833434,-616.96,0.00019178,2]
[374294585,1753267833443,-460.0,0.00019178,2]
[374294586,1753267833454,-460.0,0.00019178,2]
[374294587,1753267833464,-460.0,0.00019178,2]
[374294588,1753267833474,-486.18,0.00019178,2]
[374294589,1753267833484,-460.0,0.00019178,2]
[374294590,1753267833494,-460.0,0.00019178,2]
[374294591,1753267833504,-1351.54,0.00019178,2]
[374294592,1753267833514,-3660.59,0.00019178,2]
[374294593,1753267833524,-544.36,0.00019178,2]
[374294594,1753267833535,-460.0,0.00019178,2]
[374294595,1753267833544,-460.0,0.00019178,2]
[374294596,1753267833554,-460.0,0.00019178,2]
[374294597,1753267833564,-460.0,0.00019178,2]
[374294598,1753267833574,-460.0,0.00019178,2]
[374294599,1753267833583,-460.0,0.00019178,2]
[374294600,1753267833593,-15377.28,0.00019178,2]
[374294601,1753267833603,-460.0,0.00019178,2]
[374294602,1753267833612,-460.0,0.00019178,2]
[374294603,1753267833622,-1379.73,0.00019178,2]
[374294604,1753267833631,-1000.0,0.00019178,2]
[374294605,1753267833641,-460.0,0.00019178,2]
[374294606,1753267833650,-637.64,0.00019178,2]
[374294607,1753267833660,-163.51157323,0.00019178,2]
[374294608,1753267833673,-296.48842677,0.00019178,2]
[374294609,1753267833683,-460.0,0.00019178,2]
[374294610,1753267833693,-460.0,0.00019178,2]
[374294611,1753267833703,-460.0,0.00019178,2]
[374294612,1753267833713,-388.01716683,0.00019178,2]
[374294613,1753267833742,-71.98283317,0.00019178,2]
[374294614,1753267833752,-382.9009985,0.00019178,2]
[374294615,1753267833763,-77.0990015,0.00019178,2]
[374294616,1753267833773,-176.1910285,0.00019178,2]
[374294617,1753267833785,-283.8089715,0.00019178,2]
[374294618,1753267833795,-460.0,0.00019178,2]
[374294619,1753267833805,-460.0,0.00019178,2]
[374294620,1753267833814,-460.0,0.00019178,2]
[374294621,1753267833824,-460.0,0.00019178,2]
[374294622,1753267833833,-460.0,0.00019178,2]
[374294623,1753267833843,-460.0,0.00019178,2]
[374294624,1753267833852,-398.20653842,0.00019178,2]
[374294625,1753267833864,-61.79346158,0.00019178,2]
[374294626,1753267833874,-460.0,0.00019178,2]
[374294627,1753267833885,-460.0,0.00019178,2]
[374294628,1753267833895,-460.0,0.00019178,2]
[374294629,1753267833905,-460.0,0.00019178,2]
[374294630,1753267833915,-460.0,0.00019178,2]
[374294631,1753267833924,-460.0,0.00019178,2]
[374294632,1753267833934,-317.80922536,0.00019178,2]
[374294633,1753267833960,-2400.96077464,0.00019178,2]
[374294634,1753267833969,-460.0,0.00019178,2]
[374294635,1753267833979,-460.0,0.00019178,2]
[374294636,1753267833989,-460.0,0.00019178,2]
[374294637,1753267833999,-460.0,0.00019178,2]
[374294638,1753267834009,-460.0,0.00019178,2]
[374294639,1753267834019,-460.0,0.00019178,2]
[374294640,1753267834029,-460.0,0.00019178,2]
[374294641,1753267834039,-460.0,0.00019178,2]
[374294642,1753267834048,-191.83812762,0.00019178,2]
[374294643,1753267834059,-588.28226684,0.00019178,2]
[374294644,1753267834073,-460.0,0.00019178,2]
[374294645,1753267834083,-478.61,0.00019178,2]
[374294646,1753267834092,-2516.3,0.00019178,2]
[374294647,1753267834103,-460.0,0.00019178,2]
[374294648,1753267834112,-460.0,0.00019178,2]
[374294649,1753267834122,-666.0,0.00019178,2]
[374294650,1753267834131,-500.0,0.00019178,2]
[374294651,1753267834141,-500.0,0.00019328,2]
[374294652,1753267834150,-500.0,0.00019328,2]
[374294653,1753267834159,-181.62533038,0.00019328,2]
[374294654,1753267834169,-500.0,0.00019328,2]
[374294655,1753267834178,-500.0,0.00019328,2]
[374294656,1753267834188,-500.0,0.00019328,2]
[374294657,1753267834197,-378.76381587,0.00019328,2]
[374294658,1753267834207,-500.0,0.00019328,2]
[374294659,1753267834216,-393.72230087,0.00019328,2]
[374294660,1753267834226,-500.0,0.00019328,2]
[374294661,1753267834235,-344.89453615,0.00019328,2]
[374294662,1753267834245,-500.0,0.00019328,2]
[374294663,1753267834254,-500.0,0.00019328,2]
[374294664,1753267834264,-500.0,0.00019328,2]
[374294665,1753267834273,-500.0,0.00019328,2]
[374294666,1753267834282,-500.0,0.00019328,2]
[374294667,1753267834292,-20049.3109372,0.00019329,2]
[374294702,1753267838588,-538.32161513,0.00018972,2]
[374294717,1753267838727,-3980.963985,0.00019178,2]
[374295130,1753267849198,-826.006015,0.00019178,2]
[374295131,1753267849208,-460.0,0.00019178,2]
[374295132,1753267849219,-460.0,0.00019178,2]
[374295133,1753267849228,-37550.42037948,0.00019329,2]
[374295134,1753267849239,-1426.19370865,0.00019452,2]
[374295135,1753267850482,-3359.23629135,0.00019452,2]
[374295136,1753267850492,-460.0,0.00019452,2]
[374295137,1753267850501,-271.07900543,0.00019452,2]
[374295138,1753267850521,-188.92099457,0.00019452,2]
[374295139,1753267850530,-460.0,0.00019452,2]
[374295140,1753267850540,-460.0,0.00019452,2]
[374295141,1753267850549,-460.0,0.00019452,2]
[374295142,1753267850558,-460.0,0.00019452,2]
[374295143,1753267850567,-460.0,0.00019452,2]
[374295144,1753267850577,-460.0,0.00019452,2]
[374295145,1753267850586,-460.0,0.00019452,2]
[374295146,1753267850595,-460.0,0.00019452,2]
[374295147,1753267850811,-439.09412746,0.00019452,2]
[374295148,1753267850821,-357.40426177,0.00019452,2]
[374295149,1753267850830,-1656.58,0.00019452,2]
[374295150,1753267850840,-460.0,0.00019452,2]
[374295151,1753267850849,-460.0,0.00019452,2]
[374295152,1753267850860,-460.0,0.00019452,2]
[374295153,1753267850869,-460.0,0.00019452,2]
[374295154,1753267850878,-460.0,0.00019452,2]
[374295155,1753267850887,-460.0,0.00019452,2]
[374295156,1753267850898,-460.0,0.00019452,2]
[374295157,1753267850907,-460.0,0.00019452,2]
[374295158,1753267850916,-519.86613146,0.00019452,2]
[374295159,1753267850925,-460.0,0.00019452,2]
[374295160,1753267850934,-460.0,0.00019452,2]
[374295161,1753267850943,-462.94601988,0.00019452,2]
[374295162,1753267850953,-421.3151944,0.00019452,2]
[374295163,1753267850963,-460.0,0.00019452,2]
[374295164,1753267850973,-460.0,0.00019452,2]
[374295165,1753267850981,-460.0,0.00019452,2]
[374295166,1753267850990,-460.0,0.00019452,2]
[374295167,1753267851000,-460.0,0.00019452,2]
[374295168,1753267851009,-460.0,0.00019452,2]
[374295169,1753267851027,-460.0,0.00019452,2]
[374295170,1753267851044,-460.0,0.00019452,2]
[374295171,1753267851056,-460.0,0.00019452,2]
[374295172,1753267851074,-460.0,0.00019452,2]
[374295173,1753267851089,-460.0,0.00019452,2]
[374295174,1753267851104,-460.0,0.00019452,2]
[374295175,1753267851121,-460.0,0.00019452,2]
[374295176,1753267851135,-460.0,0.00019452,2]
[374295177,1753267851150,-460.0,0.00019452,2]